[Event "Late-Titled-Tuesday-Blitz-October-24-2023"]
[Site "Chess.com"]
[Date "2023.10.24"]
[Round "6"]
[White "bylavochka"]
[Black "DvaHrasta"]
[Result "0-1"]
[WhiteElo "2341"]
[BlackElo "2494"]
[TimeControl "180+1"]
[EndTime "15:06:38 PDT"]
[Termination "DvaHrasta won on time"]

1. e4 {[%clk 0:03:00.9]} 1... c6 {[%clk 0:02:59.6]} 2. d4 {[%clk 0:03:00.3]}
2... d5 {[%clk 0:02:59.5]} 3. Nc3 {[%clk 0:02:59.2]} 3... dxe4 {[%clk
0:02:58.4]} 4. Nxe4 {[%clk 0:03:00.1]} 4... Nf6 {[%clk 0:02:58.6]} 5. Nxf6+
{[%clk 0:02:58.7]} 5... exf6 {[%clk 0:02:58.7]} 6. Nf3 {[%clk 0:02:56.7]} 6...
Bd6 {[%clk 0:02:58.5]} 7. Be2 {[%clk 0:02:56.2]} 7... O-O {[%clk 0:02:58.4]} 8.
O-O {[%clk 0:02:56.6]} 8... Bg4 {[%clk 0:02:58.5]} 9. h3 {[%clk 0:02:47.5]} 9...
Bh5 {[%clk 0:02:58]} 10. Ne1 {[%clk 0:02:22.8]} 10... Bg6 {[%clk 0:02:48]} 11.
Bd3 {[%clk 0:02:19.9]} 11... Nd7 {[%clk 0:02:47.5]} 12. Bxg6 {[%clk 0:02:08.1]}
12... hxg6 {[%clk 0:02:47.3]} 13. Nd3 {[%clk 0:02:07.2]} 13... Qc7 {[%clk
0:02:46]} 14. c3 {[%clk 0:01:58.3]} 14... f5 {[%clk 0:02:43.9]} 15. Qf3 {[%clk
0:01:50]} 15... Nf6 {[%clk 0:02:40.2]} 16. Bf4 {[%clk 0:01:49.7]} 16... Ne4
{[%clk 0:02:31.6]} 17. Rad1 {[%clk 0:01:45.3]} 17... Rfe8 {[%clk 0:02:28]} 18.
Bxd6 {[%clk 0:01:31.2]} 18... Qxd6 {[%clk 0:02:27.3]} 19. Ne5 {[%clk 0:01:30.2]}
19... a5 {[%clk 0:02:16.1]} 20. Qd3 {[%clk 0:01:23.9]} 20... b5 {[%clk
0:02:09.5]} 21. Rfe1 {[%clk 0:01:17]} 21... a4 {[%clk 0:02:08.1]} 22. c4 {[%clk
0:01:07]} 22... b4 {[%clk 0:01:59.6]} 23. c5 {[%clk 0:01:05.6]} 23... Qd5 {[%clk
0:01:56.7]} 24. Nc4 {[%clk 0:01:05.9]} 24... Rab8 {[%clk 0:01:44.3]} 25. Qc2
{[%clk 0:00:41.4]} 25... b3 {[%clk 0:01:39.7]} 26. axb3 {[%clk 0:00:41.3]} 26...
axb3 {[%clk 0:01:36]} 27. Qd3 {[%clk 0:00:39.6]} 27... Red8 {[%clk 0:01:29.6]}
28. Nb6 {[%clk 0:00:21.7]} 28... Qe6 {[%clk 0:01:12.5]} 29. Qe3 {[%clk
0:00:13.8]} 29... Qf6 {[%clk 0:01:00.2]} 30. Qxb3 {[%clk 0:00:11.3]} 30... g5
{[%clk 0:00:56.8]} 31. Qc4 {[%clk 0:00:09.4]} 31... Qg6 {[%clk 0:00:49.7]} 32.
d5 {[%clk 0:00:09.3]} 32... cxd5 {[%clk 0:00:43.1]} 33. Rxd5 {[%clk 0:00:10.2]}
33... g4 {[%clk 0:00:35.3]} 34. Red1 {[%clk 0:00:07.7]} 34... Re8 {[%clk
0:00:26.6]} 35. hxg4 {[%clk 0:00:07]} 35... Qxg4 {[%clk 0:00:24.6]} 36. Qc2
{[%clk 0:00:02.6]} 36... Nxc5 {[%clk 0:00:20.4]} 37. Rxc5 {[%clk 0:00:02.2]}
37... Rxb6 {[%clk 0:00:19.2]} 38. f3 {[%clk 0:00:01.9]} 38... Qf4 {[%clk
0:00:18.2]} 39. Rc8 {[%clk 0:00:01.7]} 39... Re6 {[%clk 0:00:17.6]} 40. Rxe8+
{[%clk 0:00:01.8]} 40... Rxe8 {[%clk 0:00:17.7]} 41. Qd2 {[%clk 0:00:02.7]}
41... Qb8 {[%clk 0:00:17.1]} 42. b4 {[%clk 0:00:03.1]} 42... Qb6+ {[%clk
0:00:16.9]} 43. Kh2 {[%clk 0:00:01.9]} 43... g6 {[%clk 0:00:14.3]} 44. Qd6
{[%clk 0:00:01.4]} 44... Qf2 {[%clk 0:00:12.8]} 45. Qg3 {[%clk 0:00:01]} 45...
Qc2 {[%clk 0:00:11.9]} 0-1

[Event "Late-Titled-Tuesday-Blitz-October-24-2023"]
[Site "Chess.com"]
[Date "2023.10.24"]
[Round "6"]
[White "Thjop"]
[Black "Tonychess32"]
[Result "0-1"]
[WhiteElo "2626"]
[BlackElo "2534"]
[TimeControl "180+1"]
[EndTime "15:06:41 PDT"]
[Termination "Tonychess32 won by resignation"]

1. e4 {[%clk 0:03:00.9]} 1... b6 {[%clk 0:03:00.1]} 2. d4 {[%clk 0:02:59.9]}
2... e6 {[%clk 0:03:00.6]} 3. c4 {[%clk 0:02:58.7]} 3... Bb7 {[%clk 0:02:59.4]}
4. Bd3 {[%clk 0:02:58.8]} 4... d6 {[%clk 0:02:54.9]} 5. Ne2 {[%clk 0:02:57.4]}
5... Nd7 {[%clk 0:02:55.1]} 6. Nbc3 {[%clk 0:02:56.9]} 6... g6 {[%clk
0:02:51.6]} 7. h4 {[%clk 0:02:55.4]} 7... h5 {[%clk 0:02:51.4]} 8. f3 {[%clk
0:02:54.4]} 8... Bg7 {[%clk 0:02:51.4]} 9. Be3 {[%clk 0:02:54.2]} 9... Ne7
{[%clk 0:02:48.4]} 10. Qd2 {[%clk 0:02:54.3]} 10... a6 {[%clk 0:02:46.4]} 11. a4
{[%clk 0:02:51.6]} 11... c6 {[%clk 0:02:42.4]} 12. b4 {[%clk 0:02:42.1]} 12...
Qc7 {[%clk 0:02:33.2]} 13. Kf2 {[%clk 0:02:40.9]} 13... c5 {[%clk 0:02:08.4]}
14. bxc5 {[%clk 0:02:37.7]} 14... dxc5 {[%clk 0:02:02.3]} 15. d5 {[%clk
0:02:37.5]} 15... exd5 {[%clk 0:02:00.5]} 16. exd5 {[%clk 0:02:33.5]} 16... Ne5
{[%clk 0:01:49.6]} 17. Ng3 {[%clk 0:02:30.6]} 17... Nxd3+ {[%clk 0:01:44.6]} 18.
Qxd3 {[%clk 0:02:30.1]} 18... Rd8 {[%clk 0:01:39.3]} 19. Rad1 {[%clk 0:02:24.2]}
19... Be5 {[%clk 0:01:35.6]} 20. Nge4 {[%clk 0:02:16.3]} 20... O-O {[%clk
0:01:16.9]} 21. Ng5 {[%clk 0:02:06.2]} 21... Bg3+ {[%clk 0:01:06.9]} 22. Kf1
{[%clk 0:02:06.1]} 22... Nf5 {[%clk 0:01:07.2]} 23. Nce4 {[%clk 0:01:59.7]}
23... Qe5 {[%clk 0:00:55]} 24. Bd2 {[%clk 0:01:50]} 24... f6 {[%clk 0:00:21.1]}
25. Bc3 {[%clk 0:01:42.6]} 25... Nd4 {[%clk 0:00:19.2]} 26. Bxd4 {[%clk
0:01:36.2]} 26... cxd4 {[%clk 0:00:19.4]} 27. Nxg3 {[%clk 0:01:35.9]} 27... fxg5
{[%clk 0:00:13.6]} 28. Ne4 {[%clk 0:01:31.5]} 28... g4 {[%clk 0:00:09.1]} 29.
Qxd4 {[%clk 0:01:31.7]} 29... Qxd4 {[%clk 0:00:09.1]} 30. Rxd4 {[%clk
0:01:31.3]} 30... gxf3 {[%clk 0:00:10]} 31. g3 {[%clk 0:01:25.5]} 31... b5
{[%clk 0:00:10]} 32. axb5 {[%clk 0:01:24.9]} 32... axb5 {[%clk 0:00:10.9]} 33.
Nc5 {[%clk 0:01:23.2]} 33... bxc4 {[%clk 0:00:05.5]} 34. Nxb7 {[%clk 0:01:23.4]}
34... Rb8 {[%clk 0:00:06]} 35. Kf2 {[%clk 0:01:05.7]} 35... Rxb7 {[%clk
0:00:06.1]} 36. Rhd1 {[%clk 0:00:56.2]} 36... Rb2+ {[%clk 0:00:05.3]} 37. R1d2
{[%clk 0:00:56.3]} 37... Rxd2+ {[%clk 0:00:05.5]} 38. Rxd2 {[%clk 0:00:57.2]}
38... c3 {[%clk 0:00:04]} 39. Rc2 {[%clk 0:00:55.5]} 39... Rf5 {[%clk 0:00:04]}
40. Rxc3 {[%clk 0:00:55.1]} 40... Rxd5 {[%clk 0:00:04.3]} 41. Kxf3 {[%clk
0:00:54.1]} 41... Kg7 {[%clk 0:00:04.5]} 42. Ke4 {[%clk 0:00:54.1]} 42... Rd7
{[%clk 0:00:04]} 43. Rc6 {[%clk 0:00:50.4]} 43... Rf7 {[%clk 0:00:04.3]} 44. Re6
{[%clk 0:00:47.6]} 44... Rc7 {[%clk 0:00:04.3]} 45. Kf4 {[%clk 0:00:46.4]} 45...
Rc4+ {[%clk 0:00:04.4]} 46. Kf3 {[%clk 0:00:46.7]} 46... Rc3+ {[%clk 0:00:03.7]}
47. Kg2 {[%clk 0:00:46]} 47... Rc7 {[%clk 0:00:04.6]} 48. Ra6 {[%clk 0:00:44.4]}
48... Rf7 {[%clk 0:00:04.5]} 49. Ra5 {[%clk 0:00:44.3]} 49... Re7 {[%clk
0:00:04.8]} 50. Kf3 {[%clk 0:00:44.1]} 50... Rf7+ {[%clk 0:00:05.2]} 51. Ke4
{[%clk 0:00:44.2]} 51... Re7+ {[%clk 0:00:05.7]} 52. Kf4 {[%clk 0:00:44.3]}
52... Rf7+ {[%clk 0:00:05.9]} 53. Kg5 {[%clk 0:00:43.8]} 53... Rc7 {[%clk
0:00:05.8]} 54. Re5 {[%clk 0:00:41.7]} 54... Rb7 {[%clk 0:00:05.9]} 55. Rd5
{[%clk 0:00:40]} 55... Rc7 {[%clk 0:00:06.2]} 56. Rd6 {[%clk 0:00:40]} 56...
Rc5+ {[%clk 0:00:06.1]} 57. Kf4 {[%clk 0:00:40.6]} 57... Rf5+ {[%clk 0:00:06.2]}
58. Ke4 {[%clk 0:00:41.1]} 58... Rf7 {[%clk 0:00:06.2]} 59. Re6 {[%clk
0:00:40.7]} 59... Rf1 {[%clk 0:00:06]} 60. Re7+ {[%clk 0:00:39.4]} 60... Kf6
{[%clk 0:00:06.2]} 61. Re8 {[%clk 0:00:39.2]} 61... Re1+ {[%clk 0:00:06.2]} 0-1

[Event "Late-Titled-Tuesday-Blitz-October-24-2023"]
[Site "Chess.com"]
[Date "2023.10.24"]
[Round "6"]
[White "The_Sherman_Variation"]
[Black "BardArtem"]
[Result "0-1"]
[WhiteElo "2568"]
[BlackElo "2705"]
[TimeControl "180+1"]
[EndTime "15:06:44 PDT"]
[Termination "BardArtem won by resignation"]

1. e4 {[%clk 0:03:00.9]} 1... e5 {[%clk 0:02:58.4]} 2. Nf3 {[%clk 0:03:00.4]}
2... Nc6 {[%clk 0:02:58.6]} 3. Bb5 {[%clk 0:03:01.1]} 3... Nge7 {[%clk
0:02:58.6]} 4. Nc3 {[%clk 0:03:00.6]} 4... Ng6 {[%clk 0:02:58.5]} 5. d4 {[%clk
0:03:00.7]} 5... exd4 {[%clk 0:02:56.1]} 6. Nxd4 {[%clk 0:03:01.6]} 6... Bc5
{[%clk 0:02:55.8]} 7. Nb3 {[%clk 0:03:00.2]} 7... Bb6 {[%clk 0:02:54.9]} 8. O-O
{[%clk 0:03:00.8]} 8... O-O {[%clk 0:02:55.3]} 9. Nd5 {[%clk 0:02:54.1]} 9... d6
{[%clk 0:02:53.6]} 10. Nxb6 {[%clk 0:02:53.5]} 10... axb6 {[%clk 0:02:54.5]} 11.
f4 {[%clk 0:02:52.6]} 11... f5 {[%clk 0:02:52.6]} 12. exf5 {[%clk 0:02:34]}
12... Bxf5 {[%clk 0:02:53.5]} 13. c3 {[%clk 0:02:34.5]} 13... Kh8 {[%clk
0:02:51.4]} 14. Be3 {[%clk 0:02:27.6]} 14... Na5 {[%clk 0:02:39.6]} 15. Qd2
{[%clk 0:02:18.8]} 15... Bd7 {[%clk 0:02:35.8]} 16. Bd3 {[%clk 0:02:15.3]} 16...
Bf5 {[%clk 0:02:30.6]} 17. Nd4 {[%clk 0:02:12.6]} 17... Bxd3 {[%clk 0:02:28.4]}
18. Qxd3 {[%clk 0:02:13.5]} 18... Qd7 {[%clk 0:02:27.1]} 19. h3 {[%clk 0:02:09]}
19... Nc6 {[%clk 0:02:26]} 20. a3 {[%clk 0:02:07.8]} 20... Nxd4 {[%clk
0:02:23.4]} 21. Qxd4 {[%clk 0:02:06]} 21... Ra4 {[%clk 0:02:23.1]} 22. b4 {[%clk
0:01:50.1]} 22... Raa8 {[%clk 0:02:18.9]} 23. Qd3 {[%clk 0:01:47.2]} 23... Qf5
{[%clk 0:02:16.4]} 24. Qxf5 {[%clk 0:01:43.5]} 24... Rxf5 {[%clk 0:02:17.3]} 25.
g4 {[%clk 0:01:43.9]} 25... Rff8 {[%clk 0:02:17.1]} 26. f5 {[%clk 0:01:44.8]}
26... Ne5 {[%clk 0:02:17.5]} 27. Bd4 {[%clk 0:01:45.3]} 27... Nc4 {[%clk
0:02:14.7]} 28. a4 {[%clk 0:01:44.9]} 28... Kg8 {[%clk 0:02:12.6]} 29. Rae1
{[%clk 0:01:32.8]} 29... c5 {[%clk 0:02:08.9]} 30. Bf2 {[%clk 0:01:27.4]} 30...
Nd2 {[%clk 0:02:08.1]} 31. Re7 {[%clk 0:01:25.5]} 31... Nxf1 {[%clk 0:02:07]}
32. Kxf1 {[%clk 0:01:26.4]} 32... Rf7 {[%clk 0:02:07.1]} 33. Re6 {[%clk
0:01:26.4]} 33... cxb4 {[%clk 0:02:04.7]} 34. cxb4 {[%clk 0:01:26.2]} 34... Rxa4
{[%clk 0:02:05.3]} 35. Bg3 {[%clk 0:01:23.4]} 35... h5 {[%clk 0:01:58.9]} 36.
Bxd6 {[%clk 0:01:17.7]} 36... hxg4 {[%clk 0:01:57.6]} 37. hxg4 {[%clk
0:01:18.4]} 37... Ra2 {[%clk 0:01:49.9]} 38. Kg1 {[%clk 0:01:18.4]} 38... Rd7
{[%clk 0:01:43.2]} 39. g5 {[%clk 0:01:14.2]} 39... Rd8 {[%clk 0:01:39.2]} 40. g6
{[%clk 0:01:07.3]} 40... Rd2 {[%clk 0:01:27.3]} 41. Bf4 {[%clk 0:00:51.8]} 41...
Rb2 {[%clk 0:01:26.7]} 42. Bd6 {[%clk 0:00:50.5]} 42... Rd2 {[%clk 0:01:22.3]}
43. Bf4 {[%clk 0:00:50.2]} 43... Rc2 {[%clk 0:01:22.7]} 44. Re1 {[%clk 0:00:31]}
44... Rc4 {[%clk 0:01:18.7]} 45. Bd6 {[%clk 0:00:31]} 45... Rd4 {[%clk
0:01:08.8]} 46. Be7 {[%clk 0:00:24.2]} 46... Re8 {[%clk 0:01:08.1]} 47. Re6
{[%clk 0:00:20.2]} 47... Rd7 {[%clk 0:00:54.4]} 48. Bg5 {[%clk 0:00:20]} 48...
Rxe6 {[%clk 0:00:54.8]} 49. fxe6 {[%clk 0:00:20.9]} 49... Rd1+ {[%clk
0:00:55.5]} 50. Kf2 {[%clk 0:00:20.7]} 50... Kf8 {[%clk 0:00:56.2]} 51. Kf3
{[%clk 0:00:16]} 51... Ke8 {[%clk 0:00:51.9]} 52. Ke4 {[%clk 0:00:14.4]} 52...
Rg1 {[%clk 0:00:44.6]} 53. Kf5 {[%clk 0:00:14.4]} 53... Rb1 {[%clk 0:00:39.8]}
54. Bd2 {[%clk 0:00:14.6]} 54... Rb3 {[%clk 0:00:28.9]} 55. Bh6 {[%clk
0:00:14.5]} 55... gxh6 {[%clk 0:00:26.5]} 0-1

[Event "Late-Titled-Tuesday-Blitz-October-24-2023"]
[Site "Chess.com"]
[Date "2023.10.24"]
[Round "6"]
[White "Maitreia"]
[Black "Semetey"]
[Result "1-0"]
[WhiteElo "2642"]
[BlackElo "2518"]
[TimeControl "180+1"]
[EndTime "15:06:46 PDT"]
[Termination "Maitreia won on time"]

1. c4 {[%clk 0:03:00.9]} 1... a6 {[%clk 0:02:55.9]} 2. Nc3 {[%clk 0:03:00.8]}
2... c6 {[%clk 0:02:55.9]} 3. a4 {[%clk 0:02:59.1]} 3... d5 {[%clk 0:02:55.7]}
4. Nf3 {[%clk 0:02:58.6]} 4... dxc4 {[%clk 0:02:50.8]} 5. a5 {[%clk 0:02:57.5]}
5... Be6 {[%clk 0:02:35.9]} 6. g3 {[%clk 0:02:54.3]} 6... Nf6 {[%clk 0:02:31.3]}
7. Bg2 {[%clk 0:02:54.8]} 7... h6 {[%clk 0:02:28.3]} 8. O-O {[%clk 0:02:53.4]}
8... g6 {[%clk 0:02:26]} 9. d4 {[%clk 0:02:45.8]} 9... cxd3 {[%clk 0:02:25]} 10.
exd3 {[%clk 0:02:46.7]} 10... Bg7 {[%clk 0:02:24.4]} 11. Re1 {[%clk 0:02:46.8]}
11... O-O {[%clk 0:02:22.2]} 12. Rxe6 {[%clk 0:02:46.6]} 12... fxe6 {[%clk
0:02:21.7]} 13. Qb3 {[%clk 0:02:47]} 13... Qc8 {[%clk 0:01:54.8]} 14. Bf4 {[%clk
0:02:31.6]} 14... Nd5 {[%clk 0:01:53.7]} 15. Be5 {[%clk 0:02:32]} 15... Nd7
{[%clk 0:01:51.4]} 16. Bxg7 {[%clk 0:02:31]} 16... Kxg7 {[%clk 0:01:52.3]} 17.
Ne4 {[%clk 0:02:30.7]} 17... e5 {[%clk 0:01:34.2]} 18. Re1 {[%clk 0:02:20.9]}
18... Qc7 {[%clk 0:01:33.2]} 19. Qa3 {[%clk 0:02:16.8]} 19... Rf7 {[%clk
0:01:19.8]} 20. d4 {[%clk 0:02:16.9]} 20... Re8 {[%clk 0:01:03.3]} 21. dxe5
{[%clk 0:02:14.5]} 21... Nxe5 {[%clk 0:01:03.3]} 22. Nd4 {[%clk 0:02:15.2]}
22... Kh7 {[%clk 0:01:00.2]} 23. Ne6 {[%clk 0:02:12.1]} 23... Qc8 {[%clk
0:00:56.6]} 24. N6g5+ {[%clk 0:02:11.9]} 24... hxg5 {[%clk 0:00:56.1]} 25. Nxg5+
{[%clk 0:02:12.8]} 25... Kg7 {[%clk 0:00:52.5]} 26. Rxe5 {[%clk 0:02:13.5]}
26... Rf5 {[%clk 0:00:50.3]} 27. Ne6+ {[%clk 0:02:08.1]} 27... Kg8 {[%clk
0:00:49.8]} 28. Re2 {[%clk 0:01:56.8]} 28... Qd7 {[%clk 0:00:48.6]} 29. Bh3
{[%clk 0:01:55.1]} 29... Rf6 {[%clk 0:00:46.3]} 30. Ng5 {[%clk 0:01:44.7]} 30...
Qd6 {[%clk 0:00:46.2]} 31. Qb3 {[%clk 0:01:45.2]} 31... Rb8 {[%clk 0:00:44]} 32.
Ne4 {[%clk 0:01:38.7]} 32... Qe5 {[%clk 0:00:23.8]} 33. Nxf6+ {[%clk 0:01:35.9]}
33... Qxf6 {[%clk 0:00:24.7]} 34. Be6+ {[%clk 0:01:31.3]} 34... Kf8 {[%clk
0:00:24.7]} 35. Bxd5 {[%clk 0:01:32.2]} 35... cxd5 {[%clk 0:00:24.7]} 36. Qxd5
{[%clk 0:01:32.8]} 36... Qf7 {[%clk 0:00:14.2]} 37. Qe5 {[%clk 0:01:28.6]} 37...
Rc8 {[%clk 0:00:13.7]} 38. Re4 {[%clk 0:01:28.1]} 38... Kg8 {[%clk 0:00:13.4]}
39. Qxe7 {[%clk 0:01:21.4]} 39... Qxe7 {[%clk 0:00:11.9]} 40. Rxe7 {[%clk
0:01:22.3]} 40... Rc5 {[%clk 0:00:12]} 41. Rxb7 {[%clk 0:01:13.5]} 41... Rxa5
{[%clk 0:00:12.2]} 42. b4 {[%clk 0:01:13]} 42... Ra3 {[%clk 0:00:11.7]} 43. h4
{[%clk 0:01:11.9]} 43... Rb3 {[%clk 0:00:10.6]} 44. Rb6 {[%clk 0:01:12]} 44...
Kg7 {[%clk 0:00:10]} 45. Kg2 {[%clk 0:01:07.6]} 45... Kh6 {[%clk 0:00:07.6]} 46.
g4 {[%clk 0:01:07.1]} 46... Kg7 {[%clk 0:00:07.8]} 47. f3 {[%clk 0:01:07.4]}
47... Rb2+ {[%clk 0:00:06.5]} 48. Kg3 {[%clk 0:01:07.5]} 48... Rb1 {[%clk
0:00:07.4]} 49. Rb7+ {[%clk 0:01:06.8]} 49... Kf6 {[%clk 0:00:06.6]} 50. Kf4
{[%clk 0:01:04.1]} 50... Rc1 {[%clk 0:00:05.7]} 51. Rb6+ {[%clk 0:01:03.6]}
51... Kf7 {[%clk 0:00:05.7]} 52. Kg5 {[%clk 0:01:02.8]} 52... Rc4 {[%clk
0:00:05.3]} 53. Rxa6 {[%clk 0:00:57.9]} 53... Rxb4 {[%clk 0:00:04.8]} 54. Rf6+
{[%clk 0:00:58.5]} 54... Kg7 {[%clk 0:00:03.9]} 55. Rxg6+ {[%clk 0:00:58.8]}
55... Kh7 {[%clk 0:00:04.8]} 56. f4 {[%clk 0:00:56.9]} 56... Rb5+ {[%clk
0:00:04.7]} 57. f5 {[%clk 0:00:57.4]} 57... Rb4 {[%clk 0:00:04.4]} 58. h5 {[%clk
0:00:57.6]} 58... Ra4 {[%clk 0:00:02.7]} 59. Rh6+ {[%clk 0:00:57.8]} 59... Kg7
{[%clk 0:00:02.8]} 60. Rb6 {[%clk 0:00:58.7]} 60... Kh7 {[%clk 0:00:03]} 61.
Rb7+ {[%clk 0:00:58.9]} 61... Kh8 {[%clk 0:00:03.4]} 62. h6 {[%clk 0:00:58.5]}
62... Ra8 {[%clk 0:00:02.5]} 63. Kh5 {[%clk 0:00:53.6]} 1-0

[Event "Late-Titled-Tuesday-Blitz-October-24-2023"]
[Site "Chess.com"]
[Date "2023.10.24"]
[Round "6"]
[White "meoluoi91"]
[Black "Drags95"]
[Result "0-1"]
[WhiteElo "2595"]
[BlackElo "2846"]
[TimeControl "180+1"]
[EndTime "15:06:54 PDT"]
[Termination "Drags95 won on time"]

1. Nf3 {[%clk 0:03:00.9]} 1... d5 {[%clk 0:02:59.6]} 2. g3 {[%clk 0:03:00.4]}
2... g6 {[%clk 0:03:00.1]} 3. Bg2 {[%clk 0:03:00.5]} 3... Bg7 {[%clk 0:03:00.7]}
4. d4 {[%clk 0:02:59.5]} 4... Nf6 {[%clk 0:02:58.9]} 5. O-O {[%clk 0:02:59.6]}
5... c6 {[%clk 0:02:59.6]} 6. c4 {[%clk 0:02:59.8]} 6... dxc4 {[%clk 0:02:59.8]}
7. Na3 {[%clk 0:02:57.7]} 7... b5 {[%clk 0:02:59.4]} 8. Ne5 {[%clk 0:02:50.2]}
8... Nd5 {[%clk 0:02:52.9]} 9. Nc2 {[%clk 0:02:24.9]} 9... O-O {[%clk
0:02:48.8]} 10. a4 {[%clk 0:02:23.8]} 10... Bb7 {[%clk 0:02:43]} 11. e4 {[%clk
0:02:22.2]} 11... Nc7 {[%clk 0:02:37.3]} 12. f4 {[%clk 0:02:10.1]} 12... a5
{[%clk 0:02:30.4]} 13. Be3 {[%clk 0:02:08.6]} 13... Nd7 {[%clk 0:02:24.1]} 14.
Qe1 {[%clk 0:01:54.3]} 14... Nxe5 {[%clk 0:02:19.6]} 15. dxe5 {[%clk 0:01:45.4]}
15... b4 {[%clk 0:02:19.9]} 16. Nd4 {[%clk 0:01:43]} 16... c5 {[%clk 0:02:14.2]}
17. Ne2 {[%clk 0:01:30]} 17... Ne6 {[%clk 0:01:51.4]} 18. Rd1 {[%clk 0:01:28.2]}
18... Qc7 {[%clk 0:01:51.7]} 19. Qf2 {[%clk 0:01:24]} 19... Ba6 {[%clk
0:01:41.3]} 20. f5 {[%clk 0:01:23.3]} 20... Nd4 {[%clk 0:01:41.3]} 21. f6 {[%clk
0:01:17.4]} 21... exf6 {[%clk 0:01:37.7]} 22. exf6 {[%clk 0:01:15.9]} 22...
Nxe2+ {[%clk 0:01:29.2]} 23. Qxe2 {[%clk 0:01:16]} 23... Bh8 {[%clk 0:01:29.8]}
24. Qf2 {[%clk 0:01:04.7]} 24... c3 {[%clk 0:01:27.8]} 25. Rfe1 {[%clk
0:00:49.6]} 25... cxb2 {[%clk 0:01:17.5]} 26. Qxb2 {[%clk 0:00:48.1]} 26... c4
{[%clk 0:01:17.1]} 27. e5 {[%clk 0:00:41.9]} 27... c3 {[%clk 0:01:17.3]} 28. Qf2
{[%clk 0:00:40]} 28... Rae8 {[%clk 0:01:11.4]} 29. Bc5 {[%clk 0:00:36.1]} 29...
b3 {[%clk 0:00:57.8]} 30. Bd6 {[%clk 0:00:24.9]} 30... Qc8 {[%clk 0:00:50.2]}
31. Qb6 {[%clk 0:00:20.9]} 31... c2 {[%clk 0:00:46.7]} 32. Rc1 {[%clk
0:00:18.5]} 32... Bc4 {[%clk 0:00:31.7]} 33. Bc6 {[%clk 0:00:17.3]} 33... Rd8
{[%clk 0:00:21]} 34. Re4 {[%clk 0:00:15.1]} 34... Be6 {[%clk 0:00:20.1]} 35. Rd4
{[%clk 0:00:11.7]} 35... Rxd6 {[%clk 0:00:11.1]} 36. Rxd6 {[%clk 0:00:10.7]}
36... Qb8 {[%clk 0:00:11.7]} 37. Be4 {[%clk 0:00:08]} 37... Qxb6+ {[%clk
0:00:08.8]} 38. Rxb6 {[%clk 0:00:08.3]} 38... h5 {[%clk 0:00:07.8]} 39. Kf2
{[%clk 0:00:07.3]} 39... Rd8 {[%clk 0:00:07.3]} 40. Ke3 {[%clk 0:00:07.6]} 40...
Kh7 {[%clk 0:00:07.4]} 41. Bd3 {[%clk 0:00:06.4]} 41... Rd5 {[%clk 0:00:06.1]}
42. Ke4 {[%clk 0:00:05.3]} 42... Rc5 {[%clk 0:00:06.2]} 43. Ke3 {[%clk
0:00:03.5]} 43... Rxe5+ {[%clk 0:00:06.1]} 44. Kf4 {[%clk 0:00:04]} 44... Bxf6
{[%clk 0:00:06.4]} 45. h4 {[%clk 0:00:02.7]} 45... Rc5 {[%clk 0:00:06]} 46. Be4
{[%clk 0:00:01.4]} 46... Bg7 {[%clk 0:00:05.9]} 0-1

[Event "Late-Titled-Tuesday-Blitz-October-24-2023"]
[Site "Chess.com"]
[Date "2023.10.24"]
[Round "6"]
[White "Tunahan_Makaraci"]
[Black "Cryptochess"]
[Result "0-1"]
[WhiteElo "2432"]
[BlackElo "2620"]
[TimeControl "180+1"]
[EndTime "15:06:55 PDT"]
[Termination "Cryptochess won on time"]

1. e4 {[%clk 0:03:00.2]} 1... c5 {[%clk 0:02:55.9]} 2. c3 {[%clk 0:03:00.2]}
2... d5 {[%clk 0:02:55.1]} 3. exd5 {[%clk 0:03:00.4]} 3... Qxd5 {[%clk 0:02:56]}
4. d4 {[%clk 0:03:00.6]} 4... Nc6 {[%clk 0:02:56.1]} 5. Nf3 {[%clk 0:03:00.5]}
5... Nf6 {[%clk 0:02:56.3]} 6. Be3 {[%clk 0:02:57]} 6... Bg4 {[%clk 0:02:53.4]}
7. Be2 {[%clk 0:02:54.9]} 7... e6 {[%clk 0:02:51]} 8. h3 {[%clk 0:02:42.7]} 8...
Bh5 {[%clk 0:02:49.8]} 9. Nbd2 {[%clk 0:02:36.4]} 9... cxd4 {[%clk 0:02:46.9]}
10. cxd4 {[%clk 0:02:30.1]} 10... Bb4 {[%clk 0:02:43.3]} 11. O-O {[%clk
0:02:29.7]} 11... O-O {[%clk 0:02:42.4]} 12. a3 {[%clk 0:02:29]} 12... Ba5
{[%clk 0:02:40.3]} 13. b4 {[%clk 0:02:24.1]} 13... Bc7 {[%clk 0:02:39.6]} 14.
Rc1 {[%clk 0:02:10.6]} 14... Rac8 {[%clk 0:02:37.8]} 15. Rc5 {[%clk 0:01:51.8]}
15... Qd8 {[%clk 0:02:32.5]} 16. Bg5 {[%clk 0:01:48.5]} 16... Bg6 {[%clk
0:02:30.7]} 17. Nb3 {[%clk 0:01:43.1]} 17... Bb6 {[%clk 0:02:23.3]} 18. Rc1
{[%clk 0:01:36.6]} 18... h6 {[%clk 0:02:21.7]} 19. Bh4 {[%clk 0:01:36.3]} 19...
Qd6 {[%clk 0:02:13]} 20. Nc5 {[%clk 0:01:35.2]} 20... Bxc5 {[%clk 0:01:34.6]}
21. dxc5 {[%clk 0:01:35.2]} 21... Qxd1 {[%clk 0:01:23.5]} 22. Rfxd1 {[%clk
0:01:36.1]} 22... Nd5 {[%clk 0:01:23.8]} 23. Bc4 {[%clk 0:01:32.8]} 23... Be4
{[%clk 0:01:18.5]} 24. Nd2 {[%clk 0:01:26.9]} 24... Bh7 {[%clk 0:01:18.1]} 25.
Nf3 {[%clk 0:01:26]} 25... Be4 {[%clk 0:00:49]} 26. Nd2 {[%clk 0:01:21.9]} 26...
Bh7 {[%clk 0:00:47.2]} 27. Nb3 {[%clk 0:01:22]} 27... Ne5 {[%clk 0:00:24]} 28.
Bxd5 {[%clk 0:01:19.4]} 28... exd5 {[%clk 0:00:24.6]} 29. Rxd5 {[%clk 0:01:20]}
29... Nd3 {[%clk 0:00:25.3]} 30. Rd1 {[%clk 0:01:13.1]} 30... Nf4 {[%clk
0:00:25.3]} 31. Rd7 {[%clk 0:01:13.2]} 31... Rfe8 {[%clk 0:00:25.1]} 32. Nd4
{[%clk 0:00:39.1]} 32... a5 {[%clk 0:00:22.2]} 33. Bg3 {[%clk 0:00:36.8]} 33...
Nd3 {[%clk 0:00:20.4]} 34. Nb5 {[%clk 0:00:34.3]} 34... axb4 {[%clk 0:00:19.9]}
35. Nd6 {[%clk 0:00:27.4]} 35... Nb2 {[%clk 0:00:11.6]} 36. axb4 {[%clk
0:00:20.3]} 36... Nxd1 {[%clk 0:00:11.1]} 37. Nxe8 {[%clk 0:00:20.6]} 37... Rxe8
{[%clk 0:00:08.2]} 38. Rxd1 {[%clk 0:00:20.4]} 38... Bc2 {[%clk 0:00:08.2]} 39.
Rd2 {[%clk 0:00:19.3]} 39... Ba4 {[%clk 0:00:08.2]} 40. Rb2 {[%clk 0:00:11.9]}
40... Bb5 {[%clk 0:00:07.7]} 41. Kh2 {[%clk 0:00:11.2]} 41... Re4 {[%clk
0:00:07.9]} 42. Bd6 {[%clk 0:00:10.9]} 42... g5 {[%clk 0:00:06.5]} 43. f3 {[%clk
0:00:11.2]} 43... Re1 {[%clk 0:00:04.8]} 44. Kg3 {[%clk 0:00:11.4]} 44... f5
{[%clk 0:00:04.9]} 45. h4 {[%clk 0:00:07.7]} 45... Kf7 {[%clk 0:00:05.2]} 46.
hxg5 {[%clk 0:00:07.8]} 46... hxg5 {[%clk 0:00:06.1]} 47. Ra2 {[%clk 0:00:04.7]}
47... f4+ {[%clk 0:00:06.3]} 48. Kg4 {[%clk 0:00:04.7]} 48... Kg6 {[%clk
0:00:06.4]} 49. Kh3 {[%clk 0:00:01.7]} 49... Rh1+ {[%clk 0:00:05.2]} 0-1